[Event "Late-Titled-Tuesday-Blitz-March-19-2024"]
[Site "Chess.com"]
[Date "2024.03.19"]
[Round "1"]
[White "protectiago"]
[Black "Revan_2002"]
[Result "0-1"]
[WhiteElo "2067"]
[BlackElo "2585"]
[TimeControl "180+1"]
[EndTime "14:07:21 PDT"]
[Termination "Revan_2002 won by checkmate"]

1. d4 {[%clk 0:02:58.8]} 1... Nf6 {[%clk 0:02:52.4]} 2. c4 {[%clk 0:02:58.2]}
2... e6 {[%clk 0:02:50.2]} 3. g3 {[%clk 0:02:57.1]} 3... c5 {[%clk 0:02:38.8]}
4. d5 {[%clk 0:02:54.7]} 4... exd5 {[%clk 0:02:38.4]} 5. cxd5 {[%clk 0:02:54.9]}
5... d6 {[%clk 0:02:39.1]} 6. Nc3 {[%clk 0:02:52.2]} 6... g6 {[%clk 0:02:39.4]}
7. Bg2 {[%clk 0:02:51.9]} 7... Bg7 {[%clk 0:02:40]} 8. Nf3 {[%clk 0:02:52.1]}
8... O-O {[%clk 0:02:40]} 9. O-O {[%clk 0:02:52.1]} 9... Re8 {[%clk 0:02:40.6]}
10. Re1 {[%clk 0:02:47]} 10... a6 {[%clk 0:02:39.4]} 11. a4 {[%clk 0:02:46.6]}
11... Ne4 {[%clk 0:02:32.8]} 12. Nxe4 {[%clk 0:02:32.7]} 12... Rxe4 {[%clk
0:02:33.7]} 13. Nd2 {[%clk 0:02:25.8]} 13... Rb4 {[%clk 0:02:32.8]} 14. Ra3
{[%clk 0:02:17.8]} 14... Nd7 {[%clk 0:02:16]} 15. Qc2 {[%clk 0:02:09.7]} 15...
Ne5 {[%clk 0:02:08.8]} 16. b3 {[%clk 0:01:50.2]} 16... h5 {[%clk 0:01:57.8]} 17.
Ra2 {[%clk 0:01:43.4]} 17... h4 {[%clk 0:01:57.4]} 18. Ba3 {[%clk 0:01:30.3]}
18... Rd4 {[%clk 0:01:29.6]} 19. Bb2 {[%clk 0:01:19.4]} 19... Bf5 {[%clk
0:00:44.3]} 20. e4 {[%clk 0:01:04.1]} 20... Nd3 {[%clk 0:00:43.4]} 21. Re2
{[%clk 0:00:27.9]} 21... Nxb2 {[%clk 0:00:17.6]} 22. exf5 {[%clk 0:00:27.4]}
22... Nd3 {[%clk 0:00:18]} 23. fxg6 {[%clk 0:00:23.1]} 23... f6 {[%clk
0:00:16.7]} 24. Nc4 {[%clk 0:00:19.6]} 24... Nb4 {[%clk 0:00:16.1]} 25. Qf5
{[%clk 0:00:13.8]} 25... Nxa2 {[%clk 0:00:13.3]} 26. Qh5 {[%clk 0:00:12.5]}
26... Rd1+ {[%clk 0:00:07.3]} 27. Bf1 {[%clk 0:00:12.6]} 27... Nc3 {[%clk
0:00:07.9]} 28. Qh7+ {[%clk 0:00:10.6]} 28... Kf8 {[%clk 0:00:07.5]} 29. Re6
{[%clk 0:00:08.6]} 29... b5 {[%clk 0:00:03.4]} 30. Nxd6 {[%clk 0:00:08.7]} 30...
Nxd5 {[%clk 0:00:03.1]} 31. Nf5 {[%clk 0:00:08.6]} 31... Rxf1+ {[%clk
0:00:02.4]} 32. Kxf1 {[%clk 0:00:07.9]} 32... Ne3+ {[%clk 0:00:01.6]} 33. Kg1
{[%clk 0:00:06.9]} 33... Qd1# {[%clk 0:00:01.3]} 0-1

[Event "Late-Titled-Tuesday-Blitz-March-19-2024"]
[Site "Chess.com"]
[Date "2024.03.19"]
[Round "1"]
[White "ninguno46"]
[Black "Durarbayli"]
[Result "0-1"]
[WhiteElo "2539"]
[BlackElo "2967"]
[TimeControl "180+1"]
[EndTime "14:07:23 PDT"]
[Termination "Durarbayli won on time"]

1. e4 {[%clk 0:03:00.9]} 1... c5 {[%clk 0:02:57.2]} 2. Nc3 {[%clk 0:03:00.2]}
2... d6 {[%clk 0:02:57.3]} 3. f4 {[%clk 0:02:59.1]} 3... g6 {[%clk 0:02:56.9]}
4. Nf3 {[%clk 0:02:59.4]} 4... Bg7 {[%clk 0:02:57.6]} 5. Bb5+ {[%clk 0:02:59.5]}
5... Bd7 {[%clk 0:02:58.2]} 6. Bc4 {[%clk 0:02:59.6]} 6... Nc6 {[%clk
0:02:58.9]} 7. d3 {[%clk 0:02:59.5]} 7... Na5 {[%clk 0:02:59]} 8. Bd2 {[%clk
0:02:57.1]} 8... e6 {[%clk 0:02:57.8]} 9. Qe2 {[%clk 0:02:56.3]} 9... Ne7 {[%clk
0:02:57.9]} 10. O-O {[%clk 0:02:52.4]} 10... O-O {[%clk 0:02:56.9]} 11. Bb3
{[%clk 0:02:51.7]} 11... b5 {[%clk 0:02:56]} 12. Nd1 {[%clk 0:02:28]} 12... Nxb3
{[%clk 0:02:24]} 13. axb3 {[%clk 0:02:26.8]} 13... a5 {[%clk 0:02:24.9]} 14. Bc3
{[%clk 0:02:23.5]} 14... f6 {[%clk 0:02:16.6]} 15. Ne3 {[%clk 0:02:08.4]} 15...
b4 {[%clk 0:02:08.3]} 16. Bd2 {[%clk 0:02:07.6]} 16... f5 {[%clk 0:02:08.5]} 17.
Rab1 {[%clk 0:01:29.6]} 17... Qc7 {[%clk 0:01:52.9]} 18. exf5 {[%clk 0:01:16.7]}
18... exf5 {[%clk 0:01:29.4]} 19. Qf2 {[%clk 0:01:03.5]} 19... a4 {[%clk
0:01:20.5]} 20. bxa4 {[%clk 0:01:02.2]} 20... Rxa4 {[%clk 0:01:21.4]} 21. Qh4
{[%clk 0:00:51.6]} 21... Re8 {[%clk 0:01:14.4]} 22. Ng5 {[%clk 0:00:42]} 22...
h6 {[%clk 0:01:14.2]} 23. Nf3 {[%clk 0:00:42]} 23... Qd8 {[%clk 0:01:08.2]} 24.
Qg3 {[%clk 0:00:41.3]} 24... Kh7 {[%clk 0:01:07.8]} 25. Qh3 {[%clk 0:00:39.7]}
25... Ra2 {[%clk 0:00:59.4]} 26. Ng5+ {[%clk 0:00:37.8]} 26... Kg8 {[%clk
0:00:59]} 27. Nf3 {[%clk 0:00:35.4]} 27... Nc6 {[%clk 0:00:51.7]} 28. Qg3 {[%clk
0:00:31.2]} 28... Kh7 {[%clk 0:00:51.3]} 29. Nh4 {[%clk 0:00:26.6]} 29... Qf6
{[%clk 0:00:48.6]} 30. c3 {[%clk 0:00:20.5]} 30... bxc3 {[%clk 0:00:27.6]} 31.
Bxc3 {[%clk 0:00:19.8]} 31... Rxe3 {[%clk 0:00:28]} 32. Qxe3 {[%clk 0:00:17.2]}
32... Qxh4 {[%clk 0:00:28.6]} 33. Rf2 {[%clk 0:00:10.4]} 33... Nd4 {[%clk
0:00:26.3]} 34. Re1 {[%clk 0:00:07.8]} 34... Be6 {[%clk 0:00:20.7]} 35. h3
{[%clk 0:00:06.4]} 35... Ra8 {[%clk 0:00:20]} 36. Kh2 {[%clk 0:00:06.2]} 36...
Re8 {[%clk 0:00:19.9]} 37. Qg3 {[%clk 0:00:04.7]} 37... Qd8 {[%clk 0:00:15.4]}
38. Bxd4 {[%clk 0:00:02.7]} 38... Bxd4 {[%clk 0:00:16.3]} 39. Rfe2 {[%clk
0:00:03]} 39... Bf7 {[%clk 0:00:16.9]} 40. Rxe8 {[%clk 0:00:01.3]} 40... Bxe8
{[%clk 0:00:17.8]} 41. b3 {[%clk 0:00:01.1]} 41... Bf7 {[%clk 0:00:17.8]} 0-1

[Event "Late-Titled-Tuesday-Blitz-March-19-2024"]
[Site "Chess.com"]
[Date "2024.03.19"]
[Round "1"]
[White "profedechess93"]
[Black "tylityli"]
[Result "1-0"]
[WhiteElo "2644"]
[BlackElo "2307"]
[TimeControl "180+1"]
[EndTime "14:07:25 PDT"]
[Termination "profedechess93 won on time"]

1. e4 {[%clk 0:03:00.9]} 1... e5 {[%clk 0:02:54.6]} 2. Nf3 {[%clk 0:03:00.5]}
2... Nc6 {[%clk 0:02:53.5]} 3. Bc4 {[%clk 0:03:01.1]} 3... Nf6 {[%clk
0:02:51.4]} 4. d3 {[%clk 0:03:00.7]} 4... Be7 {[%clk 0:02:50.6]} 5. c3 {[%clk
0:03:00.9]} 5... O-O {[%clk 0:02:51.5]} 6. Bb3 {[%clk 0:03:01.3]} 6... d5 {[%clk
0:02:50.7]} 7. Qe2 {[%clk 0:03:01.5]} 7... dxe4 {[%clk 0:02:44]} 8. dxe4 {[%clk
0:03:01.7]} 8... a5 {[%clk 0:02:37.5]} 9. a4 {[%clk 0:03:00.5]} 9... h6 {[%clk
0:02:34.1]} 10. Nbd2 {[%clk 0:02:59.2]} 10... Bc5 {[%clk 0:02:33.7]} 11. Nf1
{[%clk 0:02:55.3]} 11... b6 {[%clk 0:02:32.4]} 12. Bc4 {[%clk 0:02:45]} 12...
Qe7 {[%clk 0:02:24.7]} 13. Ng3 {[%clk 0:02:41.5]} 13... Be6 {[%clk 0:02:24.8]}
14. O-O {[%clk 0:02:23.8]} 14... Bxc4 {[%clk 0:02:23.3]} 15. Qxc4 {[%clk
0:02:24.7]} 15... Qe6 {[%clk 0:02:17.2]} 16. Qe2 {[%clk 0:02:24.7]} 16... Ne7
{[%clk 0:02:07.2]} 17. h3 {[%clk 0:01:46.6]} 17... Rfd8 {[%clk 0:01:57.9]} 18.
Nh4 {[%clk 0:01:40.4]} 18... Kh7 {[%clk 0:01:39.7]} 19. Nhf5 {[%clk 0:01:23.1]}
19... Nxf5 {[%clk 0:01:32.1]} 20. Nxf5 {[%clk 0:01:11.9]} 20... Ng8 {[%clk
0:01:27.8]} 21. Kh1 {[%clk 0:01:03.8]} 21... g6 {[%clk 0:01:20.6]} 22. Ne3
{[%clk 0:00:53.4]} 22... Bxe3 {[%clk 0:00:55.4]} 23. Bxe3 {[%clk 0:00:37.7]}
23... f5 {[%clk 0:00:48.6]} 24. f4 {[%clk 0:00:30.8]} 24... Rf8 {[%clk
0:00:16.1]} 25. Rae1 {[%clk 0:00:19.1]} 25... Rae8 {[%clk 0:00:13.1]} 26. fxe5
{[%clk 0:00:17.1]} 26... Qxe5 {[%clk 0:00:10.6]} 27. Bd4 {[%clk 0:00:17.2]}
27... Qd6 {[%clk 0:00:03.7]} 28. Qc4 {[%clk 0:00:14.1]} 28... Qe6 {[%clk
0:00:03.1]} 29. Qxc7+ {[%clk 0:00:13.6]} 29... Rf7 {[%clk 0:00:03.1]} 30. Qf4
{[%clk 0:00:12.5]} 30... Ree7 {[%clk 0:00:01]} 31. e5 {[%clk 0:00:09.2]} 31...
Qd5 {[%clk 0:00:01.4]} 32. Be3 {[%clk 0:00:08.3]} 32... Qe6 {[%clk 0:00:01.8]}
33. Bd4 {[%clk 0:00:07.1]} 33... g5 {[%clk 0:00:01.3]} 34. Qf2 {[%clk
0:00:07.3]} 34... f4 {[%clk 0:00:01.7]} 35. Bxb6 {[%clk 0:00:07.3]} 1-0

[Event "Late-Titled-Tuesday-Blitz-March-19-2024"]
[Site "Chess.com"]
[Date "2024.03.19"]
[Round "1"]
[White "betta2004"]
[Black "BilodeauA"]
[Result "0-1"]
[WhiteElo "2558"]
[BlackElo "3063"]
[TimeControl "180+1"]
[EndTime "14:07:26 PDT"]
[Termination "BilodeauA won by resignation"]

1. e4 {[%clk 0:02:59.9]} 1... e5 {[%clk 0:02:59]} 2. Nf3 {[%clk 0:02:49.3]} 2...
Nc6 {[%clk 0:02:59]} 3. d4 {[%clk 0:02:48.6]} 3... exd4 {[%clk 0:02:52.3]} 4.
Nxd4 {[%clk 0:02:49.5]} 4... Qf6 {[%clk 0:02:52]} 5. Nf3 {[%clk 0:02:47.6]} 5...
Bb4+ {[%clk 0:02:51.7]} 6. c3 {[%clk 0:02:47.7]} 6... Bc5 {[%clk 0:02:52.3]} 7.
Be2 {[%clk 0:02:48]} 7... Nge7 {[%clk 0:02:46.2]} 8. Bg5 {[%clk 0:02:42.3]} 8...
Qg6 {[%clk 0:02:44.8]} 9. b4 {[%clk 0:02:42.6]} 9... Bb6 {[%clk 0:02:43.3]} 10.
Nbd2 {[%clk 0:02:42.3]} 10... d6 {[%clk 0:02:30.2]} 11. O-O {[%clk 0:02:30.7]}
11... f6 {[%clk 0:02:22.4]} 12. Bh4 {[%clk 0:02:29.9]} 12... Be6 {[%clk
0:02:21.4]} 13. a4 {[%clk 0:02:24.1]} 13... a5 {[%clk 0:02:11.9]} 14. Nc4 {[%clk
0:02:09.9]} 14... Bxc4 {[%clk 0:02:04.9]} 15. Bxc4 {[%clk 0:02:10.8]} 15...
O-O-O {[%clk 0:02:04.8]} 16. Be6+ {[%clk 0:02:04.9]} 16... Kb8 {[%clk
0:02:03.5]} 17. Qe2 {[%clk 0:01:42]} 17... Rhe8 {[%clk 0:01:59.8]} 18. Rfe1
{[%clk 0:01:36]} 18... d5 {[%clk 0:01:50.7]} 19. bxa5 {[%clk 0:01:30.2]} 19...
Nxa5 {[%clk 0:01:50.6]} 20. Qb5 {[%clk 0:01:04.6]} 20... dxe4 {[%clk 0:01:38]}
21. Nd4 {[%clk 0:01:04.6]} 21... Nec6 {[%clk 0:01:17.6]} 22. Bf5 {[%clk
0:00:48.8]} 22... Qh6 {[%clk 0:00:51.9]} 23. Bg3 {[%clk 0:00:44.1]} 23... Ka7
{[%clk 0:00:41.3]} 24. Ne6 {[%clk 0:00:40.5]} 24... Rd2 {[%clk 0:00:26.3]} 25.
c4 {[%clk 0:00:29.3]} 25... Rxe6 {[%clk 0:00:22.7]} 26. Bxe6 {[%clk 0:00:30.2]}
26... Nd4 {[%clk 0:00:23.3]} 27. Qe8 {[%clk 0:00:20.5]} 27... e3 {[%clk
0:00:18.2]} 28. Rxe3 {[%clk 0:00:18.1]} 28... Ne2+ {[%clk 0:00:15.3]} 29. Rxe2
{[%clk 0:00:18.3]} 29... Rxe2 {[%clk 0:00:16.2]} 30. c5 {[%clk 0:00:17]} 30...
Bxc5 {[%clk 0:00:13.5]} 31. Bxc7 {[%clk 0:00:16.7]} 31... Nc6 {[%clk 0:00:13.4]}
32. Rb1 {[%clk 0:00:10.7]} 32... Qd2 {[%clk 0:00:10.6]} 33. Rxb7+ {[%clk
0:00:10]} 33... Kxb7 {[%clk 0:00:10.1]} 34. Qc8+ {[%clk 0:00:06.5]} 34... Ka7
{[%clk 0:00:09.4]} 35. Bb8+ {[%clk 0:00:07]} 35... Nxb8 {[%clk 0:00:07.9]} 36.
Qc7+ {[%clk 0:00:07.5]} 36... Ka8 {[%clk 0:00:05.3]} 37. h4 {[%clk 0:00:05.5]}
37... Re1+ {[%clk 0:00:04]} 38. Kh2 {[%clk 0:00:05.5]} 38... Bd6+ {[%clk
0:00:04.8]} 0-1

[Event "Late-Titled-Tuesday-Blitz-March-19-2024"]
[Site "Chess.com"]
[Date "2024.03.19"]
[Round "1"]
[White "Rud_Makarian"]
[Black "AGW2016"]
[Result "1-0"]
[WhiteElo "3001"]
[BlackElo "2541"]
[TimeControl "180+1"]
[EndTime "14:07:26 PDT"]
[Termination "Rud_Makarian won by resignation"]

1. d4 {[%clk 0:02:55.3]} 1... Nf6 {[%clk 0:03:00.1]} 2. Nf3 {[%clk 0:02:56.2]}
2... g6 {[%clk 0:02:59.2]} 3. c4 {[%clk 0:02:56.8]} 3... Bg7 {[%clk 0:02:59.8]}
4. g3 {[%clk 0:02:56.8]} 4... O-O {[%clk 0:03:00]} 5. Bg2 {[%clk 0:02:57.7]}
5... d6 {[%clk 0:03:00.7]} 6. O-O {[%clk 0:02:58.6]} 6... c6 {[%clk 0:03:01.5]}
7. Nc3 {[%clk 0:02:59]} 7... Bf5 {[%clk 0:03:02]} 8. Nh4 {[%clk 0:02:55.3]} 8...
Be6 {[%clk 0:03:01.7]} 9. b3 {[%clk 0:02:55.8]} 9... a5 {[%clk 0:02:54.1]} 10.
Bb2 {[%clk 0:02:55.3]} 10... a4 {[%clk 0:02:52.1]} 11. Rc1 {[%clk 0:02:53.7]}
11... axb3 {[%clk 0:02:36.5]} 12. axb3 {[%clk 0:02:54.6]} 12... Na6 {[%clk
0:02:36.8]} 13. d5 {[%clk 0:02:44.3]} 13... cxd5 {[%clk 0:02:36.9]} 14. Nxd5
{[%clk 0:02:31.2]} 14... Bxd5 {[%clk 0:02:19.6]} 15. Bxd5 {[%clk 0:02:26]} 15...
Nxd5 {[%clk 0:02:19.1]} 16. Bxg7 {[%clk 0:02:25.8]} 16... Kxg7 {[%clk
0:02:18.1]} 17. Qxd5 {[%clk 0:02:16.8]} 17... Nc5 {[%clk 0:02:18.5]} 18. b4
{[%clk 0:02:12.1]} 18... Ne6 {[%clk 0:02:18.9]} 19. Nf3 {[%clk 0:02:07.4]} 19...
Qb6 {[%clk 0:02:18.2]} 20. c5 {[%clk 0:02:01.3]} 20... Qxb4 {[%clk 0:02:14.7]}
21. cxd6 {[%clk 0:02:01.6]} 21... Qxd6 {[%clk 0:02:15.4]} 22. Qxb7 {[%clk
0:02:00.2]} 22... Ra2 {[%clk 0:02:08.9]} 23. Rfd1 {[%clk 0:01:58]} 23... Qa6
{[%clk 0:02:06.5]} 24. Qxa6 {[%clk 0:01:56.2]} 24... Rxa6 {[%clk 0:02:07.4]} 25.
Rd2 {[%clk 0:01:51.1]} 25... Rd8 {[%clk 0:02:05.6]} 26. Rxd8 {[%clk 0:01:51]}
26... Nxd8 {[%clk 0:02:06.5]} 27. Kg2 {[%clk 0:01:50.3]} 27... Ne6 {[%clk
0:02:05.9]} 28. Rb1 {[%clk 0:01:49.5]} 28... Ra2 {[%clk 0:02:05.7]} 29. e3
{[%clk 0:01:49.7]} 29... g5 {[%clk 0:02:03.4]} 30. h3 {[%clk 0:01:45.8]} 30...
h5 {[%clk 0:02:03.3]} 31. Rb5 {[%clk 0:01:46.2]} 31... Kf6 {[%clk 0:02:03.3]}
32. g4 {[%clk 0:01:42]} 32... hxg4 {[%clk 0:02:01.3]} 33. hxg4 {[%clk
0:01:42.9]} 33... Kg6 {[%clk 0:01:57.9]} 34. Ne5+ {[%clk 0:01:41.6]} 34... Kf6
{[%clk 0:01:58.1]} 35. Nf3 {[%clk 0:01:24.4]} 35... Kg6 {[%clk 0:01:57]} 36. Rb6
{[%clk 0:01:25]} 36... Kf6 {[%clk 0:01:54.1]} 37. Nd4 {[%clk 0:01:21.5]} 37...
Ke5 {[%clk 0:01:48.8]} 38. Rb5+ {[%clk 0:01:18.5]} 38... Kf6 {[%clk 0:01:48.8]}
39. Nc6 {[%clk 0:01:19]} 39... Ng7 {[%clk 0:01:41.3]} 40. Rb7 {[%clk 0:01:12.2]}
40... Ra4 {[%clk 0:01:29.2]} 41. Kg3 {[%clk 0:01:11.8]} 41... Re4 {[%clk
0:01:29.2]} 42. Nd4 {[%clk 0:01:02.6]} 42... Re5 {[%clk 0:01:18.6]} 43. Rb6+
{[%clk 0:00:56.4]} 43... e6 {[%clk 0:01:16.7]} 44. Rb7 {[%clk 0:00:56.3]} 44...
Rc5 {[%clk 0:01:15.7]} 45. Nf3 {[%clk 0:00:43.3]} 45... Ne8 {[%clk 0:01:12.5]}
46. Rd7 {[%clk 0:00:34.4]} 46... Nc7 {[%clk 0:01:03.8]} 47. Nd2 {[%clk
0:00:32.4]} 47... Rc2 {[%clk 0:00:55.9]} 48. Ne4+ {[%clk 0:00:32.4]} 48... Kg6
{[%clk 0:00:55.9]} 49. Rd8 {[%clk 0:00:28.4]} 49... f5 {[%clk 0:00:39.5]} 50.
gxf5+ {[%clk 0:00:22.1]} 50... exf5 {[%clk 0:00:40.4]} 51. Rd6+ {[%clk 0:00:22]}
51... Kh5 {[%clk 0:00:27.7]} 52. Nf6+ {[%clk 0:00:22.3]} 52... Kg6 {[%clk
0:00:28.4]} 53. Nd5+ {[%clk 0:00:17.3]} 53... Kf7 {[%clk 0:00:27.5]} 54. Rd7+
{[%clk 0:00:16.3]} 54... Ke6 {[%clk 0:00:27.9]} 55. Rxc7 {[%clk 0:00:16.9]} 1-0

[Event "Late-Titled-Tuesday-Blitz-March-19-2024"]
[Site "Chess.com"]
[Date "2024.03.19"]
[Round "1"]
[White "JosephRyan"]
[Black "Zq1"]
[Result "1/2-1/2"]
[WhiteElo "2259"]
[BlackElo "2605"]
[TimeControl "180+1"]
[EndTime "14:07:27 PDT"]
[Termination "Game drawn - timeout vs insufficient material"]

1. e4 {[%clk 0:02:58.5]} 1... c5 {[%clk 0:02:58.8]} 2. c3 {[%clk 0:02:52.2]}
2... d5 {[%clk 0:02:58.3]} 3. exd5 {[%clk 0:02:51.6]} 3... Nf6 {[%clk
0:02:58.3]} 4. Bb5+ {[%clk 0:02:49.8]} 4... Nbd7 {[%clk 0:02:55.8]} 5. d4 {[%clk
0:02:42.5]} 5... a6 {[%clk 0:02:54.5]} 6. Be2 {[%clk 0:02:38.7]} 6... Nxd5
{[%clk 0:02:51.4]} 7. Nf3 {[%clk 0:02:33.2]} 7... e6 {[%clk 0:02:43.2]} 8. O-O
{[%clk 0:02:31.6]} 8... Be7 {[%clk 0:02:42.8]} 9. c4 {[%clk 0:02:30.2]} 9...
N5f6 {[%clk 0:02:41.5]} 10. d5 {[%clk 0:02:29.8]} 10... exd5 {[%clk 0:02:39.3]}
11. cxd5 {[%clk 0:02:30.7]} 11... Bd6 {[%clk 0:02:39.2]} 12. Nc3 {[%clk
0:02:27.4]} 12... b5 {[%clk 0:02:37.5]} 13. Bg5 {[%clk 0:02:15.6]} 13... h6
{[%clk 0:02:33.7]} 14. Bh4 {[%clk 0:02:15]} 14... O-O {[%clk 0:02:32.4]} 15. a4
{[%clk 0:02:09.3]} 15... g5 {[%clk 0:02:17.9]} 16. Bg3 {[%clk 0:02:07]} 16...
Bxg3 {[%clk 0:02:17.1]} 17. hxg3 {[%clk 0:01:56.3]} 17... b4 {[%clk 0:02:17]}
18. Nb1 {[%clk 0:01:53.2]} 18... Bb7 {[%clk 0:02:15]} 19. Bc4 {[%clk 0:01:52.4]}
19... Nb6 {[%clk 0:02:13.9]} 20. Nbd2 {[%clk 0:01:46.5]} 20... Bxd5 {[%clk
0:02:00.7]} 21. Rc1 {[%clk 0:01:38.3]} 21... a5 {[%clk 0:01:51.2]} 22. Bxd5
{[%clk 0:01:35.1]} 22... Qxd5 {[%clk 0:01:49.7]} 23. Qc2 {[%clk 0:01:22]} 23...
Rac8 {[%clk 0:01:43.1]} 24. Nc4 {[%clk 0:01:20]} 24... Qxc4 {[%clk 0:01:38.6]}
25. Qxc4 {[%clk 0:01:20.9]} 25... Nxc4 {[%clk 0:01:38.1]} 26. Rxc4 {[%clk
0:01:21.5]} 26... Nd5 {[%clk 0:01:33.1]} 27. Rfc1 {[%clk 0:01:20]} 27... Nb6
{[%clk 0:01:10.1]} 28. Rxc5 {[%clk 0:01:19.9]} 28... Rxc5 {[%clk 0:01:07.4]} 29.
Rxc5 {[%clk 0:01:20.8]} 29... Nxa4 {[%clk 0:01:06.1]} 30. Rxa5 {[%clk
0:01:20.5]} 30... Nxb2 {[%clk 0:01:05.9]} 31. Rb5 {[%clk 0:01:13.1]} 31... Nd3
{[%clk 0:01:05.4]} 32. Kf1 {[%clk 0:01:11.8]} 32... Rc8 {[%clk 0:00:48.8]} 33.
Ke2 {[%clk 0:01:09.8]} 33... Nc1+ {[%clk 0:00:37.9]} 34. Ke3 {[%clk 0:01:06.7]}
34... b3 {[%clk 0:00:28.1]} 35. Nd4 {[%clk 0:00:59.4]} 35... Rc3+ {[%clk
0:00:20.5]} 36. Ke4 {[%clk 0:00:59.1]} 36... Rc4 {[%clk 0:00:14.4]} 37. Kd5
{[%clk 0:00:54]} 37... Rc3 {[%clk 0:00:13.4]} 38. g4 {[%clk 0:00:48.4]} 38...
Kh7 {[%clk 0:00:10.5]} 39. Rb6 {[%clk 0:00:43.6]} 39... Nd3 {[%clk 0:00:09.1]}
40. Rxb3 {[%clk 0:00:40.9]} 40... Rxb3 {[%clk 0:00:08]} 41. Nxb3 {[%clk
0:00:40.7]} 41... Nxf2 {[%clk 0:00:08.3]} 42. Ke5 {[%clk 0:00:35.2]} 42... Nxg4+
{[%clk 0:00:08.9]} 43. Kf5 {[%clk 0:00:35.4]} 43... Ne3+ {[%clk 0:00:08.2]} 44.
Kf6 {[%clk 0:00:35.7]} 44... Nxg2 {[%clk 0:00:07.4]} 45. Kxf7 {[%clk 0:00:35.9]}
45... g4 {[%clk 0:00:07.5]} 46. Nd4 {[%clk 0:00:36.3]} 46... h5 {[%clk
0:00:07.2]} 47. Nf5 {[%clk 0:00:36.3]} 47... h4 {[%clk 0:00:06.4]} 48. Kf6
{[%clk 0:00:30.8]} 48... g3 {[%clk 0:00:03.2]} 49. Kg5 {[%clk 0:00:27.2]}
1/2-1/2

[Event "Late-Titled-Tuesday-Blitz-March-19-2024"]
[Site "Chess.com"]
[Date "2024.03.19"]
[Round "1"]
[White "vugarrasulov"]
[Black "valeriocarnicelli"]
[Result "0-1"]
[WhiteElo "2950"]
[BlackElo "2555"]
[TimeControl "180+1"]
[EndTime "14:07:28 PDT"]
[Termination "valeriocarnicelli won by checkmate"]

1. e4 {[%clk 0:03:00.9]} 1... e5 {[%clk 0:03:00.1]} 2. Nf3 {[%clk 0:03:00.7]}
2... Nc6 {[%clk 0:03:00.7]} 3. Bb5 {[%clk 0:03:01]} 3... f5 {[%clk 0:03:01.1]}
4. d3 {[%clk 0:02:58.6]} 4... fxe4 {[%clk 0:03:01.5]} 5. dxe4 {[%clk 0:02:59.5]}
5... Nf6 {[%clk 0:03:02.2]} 6. O-O {[%clk 0:02:57.8]} 6... Bc5 {[%clk
0:03:02.5]} 7. Qd3 {[%clk 0:02:53]} 7... d6 {[%clk 0:02:58.9]} 8. Qc4 {[%clk
0:02:50.9]} 8... Qe7 {[%clk 0:02:55]} 9. Nc3 {[%clk 0:02:33.8]} 9... Bd7 {[%clk
0:02:26.2]} 10. Bg5 {[%clk 0:02:32.4]} 10... a6 {[%clk 0:02:17.6]} 11. Bxc6
{[%clk 0:02:29.2]} 11... bxc6 {[%clk 0:02:18.5]} 12. a3 {[%clk 0:02:05.1]} 12...
Qe6 {[%clk 0:02:17.2]} 13. Qxe6+ {[%clk 0:01:52.2]} 13... Bxe6 {[%clk
0:02:18.1]} 14. b4 {[%clk 0:01:45]} 14... Ba7 {[%clk 0:02:15.6]} 15. Be3 {[%clk
0:01:41]} 15... Bxe3 {[%clk 0:02:05.7]} 16. fxe3 {[%clk 0:01:41.9]} 16... Rf8
{[%clk 0:01:58]} 17. Nd2 {[%clk 0:01:41.1]} 17... Bf7 {[%clk 0:01:53.3]} 18. h3
{[%clk 0:01:36.7]} 18... Bg6 {[%clk 0:01:52.8]} 19. g4 {[%clk 0:01:27.9]} 19...
h6 {[%clk 0:01:51.8]} 20. Kg2 {[%clk 0:01:28]} 20... Kd7 {[%clk 0:01:50.4]} 21.
Kg3 {[%clk 0:01:28.4]} 21... a5 {[%clk 0:01:50.2]} 22. bxa5 {[%clk 0:01:18.7]}
22... Rxa5 {[%clk 0:01:51.1]} 23. Nb3 {[%clk 0:01:16.6]} 23... Raa8 {[%clk
0:01:48.2]} 24. Nd2 {[%clk 0:01:06.3]} 24... Rfb8 {[%clk 0:01:48.2]} 25. h4
{[%clk 0:01:00]} 25... Rb2 {[%clk 0:01:35]} 26. Rfc1 {[%clk 0:00:59.3]} 26...
Ke6 {[%clk 0:01:11.1]} 27. Nd1 {[%clk 0:00:56.2]} 27... Rb7 {[%clk 0:01:07]} 28.
Nc3 {[%clk 0:00:49.5]} 28... d5 {[%clk 0:01:06.3]} 29. Nb3 {[%clk 0:00:43.9]}
29... Kd6 {[%clk 0:00:58.9]} 30. exd5 {[%clk 0:00:42.7]} 30... cxd5 {[%clk
0:00:58.7]} 31. a4 {[%clk 0:00:41.3]} 31... c6 {[%clk 0:00:50.7]} 32. a5 {[%clk
0:00:38.9]} 32... Bxc2 {[%clk 0:00:48.7]} 33. Rxc2 {[%clk 0:00:26.4]} 33... Rxb3
{[%clk 0:00:48.6]} 34. Kf3 {[%clk 0:00:27.2]} 34... Nd7 {[%clk 0:00:39.6]} 35.
Ke2 {[%clk 0:00:23.9]} 35... Nc5 {[%clk 0:00:35.4]} 36. g5 {[%clk 0:00:24.5]}
36... hxg5 {[%clk 0:00:31.4]} 37. hxg5 {[%clk 0:00:25.4]} 37... Na6 {[%clk
0:00:30.7]} 38. Rcc1 {[%clk 0:00:17.5]} 38... Rh8 {[%clk 0:00:25.7]} 39. Kf3
{[%clk 0:00:15]} 39... Rh3+ {[%clk 0:00:18.6]} 40. Kg4 {[%clk 0:00:15.6]} 40...
Rxe3 {[%clk 0:00:17.6]} 41. Na4 {[%clk 0:00:15.9]} 41... g6 {[%clk 0:00:15]} 42.
Rf1 {[%clk 0:00:04.7]} 42... Rb4+ {[%clk 0:00:14.4]} 43. Rf4 {[%clk 0:00:05.1]}
43... Rxf4# {[%clk 0:00:14.7]} 0-1